bitfinex/quotes_BTCUSD_20250414
["timestamp","ask_amount","ask_price","bid_price","bid_amount"]
[1744603282486,0.00027224,84556.0,84555.0,0.189225]
[1744603283247,0.00027224,84556.0,84555.0,0.19661575]
[1744603283442,0.00027224,84556.0,84555.0,0.21623313]
[1744603283696,0.00073545,84556.0,84555.0,0.21623313]
[1744603283910,0.00373545,84556.0,84555.0,0.21623313]
[1744603284628,0.00373545,84556.0,84555.0,0.22728088]
[1744603285503,0.00373545,84556.0,84555.0,0.34812242]
[1744603286630,0.00073545,84556.0,84555.0,0.34812242]
[1744603287046,0.00273545,84556.0,84555.0,0.34812242]
[1744603290228,0.00073545,84556.0,84555.0,0.34812242]
[1744603290548,0.00073545,84556.0,84555.0,0.35012242]
[1744603290690,0.00073545,84556.0,84555.0,0.44562242]
[1744603291296,0.00073545,84556.0,84555.0,0.45738314]
[1744603291523,0.00073545,84556.0,84555.0,0.45638314]
[1744603292056,0.00073545,84556.0,84555.0,0.45938314]
[1744603292885,0.00073545,84556.0,84555.0,0.45838314]
[1744603293288,0.00073545,84556.0,84555.0,0.46138314]
[1744603293527,0.00073545,84556.0,84555.0,0.81692399]
[1744603294056,0.00073545,84556.0,84555.0,0.80138314]
[1744603294546,0.00073545,84556.0,84555.0,0.79838314]
[1744603294979,0.00073545,84556.0,84555.0,0.46238314]
[1744603295334,0.00073545,84556.0,84555.0,0.36388314]
[1744603295739,0.00073545,84556.0,84555.0,0.36788314]
[1744603296075,0.00073545,84556.0,84555.0,0.43212399]
[1744603296272,0.00073545,84556.0,84555.0,0.84882399]
[1744603296472,0.00073545,84556.0,84555.0,0.85182399]
[1744603296999,0.00073545,84556.0,84555.0,0.90172399]
[1744603297157,0.00073545,84556.0,84555.0,0.89272399]
[1744603297358,0.00073545,84556.0,84555.0,0.89572399]
[1744603297785,2.5e-07,84557.0,84556.0,0.34]
[1744603297937,2.5e-07,84557.0,84556.0,0.48720556]
[1744603298143,2.5e-07,84557.0,84556.0,0.49809834]
[1744603298944,2.5e-07,84557.0,84556.0,0.50109834]
[1744603299207,2.5e-07,84557.0,84556.0,0.49809834]
[1744603299678,2.5e-07,84557.0,84556.0,0.50309834]
[1744603300252,2.5e-07,84557.0,84556.0,0.50709834]
[1744603302078,2.5e-07,84557.0,84556.0,0.92579834]
[1744603303422,2.5e-07,84560.0,84559.0,0.01454085]
[1744603303623,0.00013911,84560.0,84559.0,0.18844674]
[1744603303796,0.00013911,84560.0,84559.0,0.20661839]
[1744603304015,0.001465,84589.0,84586.0,0.200976]
[1744603304202,0.00160411,84589.0,84588.0,0.189152]
[1744603304401,0.00160411,84589.0,84588.0,0.32896681]
[1744603304605,0.00160411,84589.0,84588.0,0.3397992]
[1744603305909,0.00150499,84589.0,84588.0,0.34718555]
[1744603307122,0.00150499,84589.0,84588.0,0.34818555]
[1744603308555,0.00150499,84589.0,84588.0,1.2178264]
[1744603308740,0.00150499,84589.0,84588.0,1.2188264]
[1744603308933,0.00150499,84589.0,84588.0,1.20428555]
[1744603309140,0.00150499,84589.0,84588.0,0.57873355]
[1744603309471,0.00150499,84589.0,84588.0,0.55776028]
[1744603309674,0.00150499,84589.0,84588.0,0.56076028]
[1744603309876,0.00150499,84589.0,84588.0,0.56376028]
[1744603310472,0.00150499,84589.0,84588.0,0.56476028]
[1744603310795,0.00150499,84589.0,84588.0,0.56176028]
[1744603312018,0.00150499,84589.0,84588.0,0.02521874]
[1744603312224,0.00150499,84589.0,84588.0,0.01783239]
[1744603312377,0.00150499,84589.0,84588.0,0.007]
[1744603312574,0.00150499,84589.0,84588.0,0.01759795]
[1744603312773,0.00150499,84589.0,84587.0,0.189154]
[1744603312974,0.00150499,84589.0,84588.0,0.0189843]
[1744603313604,0.00150499,84589.0,84588.0,0.0179843]
[1744603313823,0.00150499,84589.0,84588.0,0.0189843]
[1744603314023,0.00150499,84589.0,84588.0,0.01159795]
[1744603315757,0.19065399,84589.0,84588.0,0.01159795]
[1744603317408,0.19065399,84589.0,84588.0,0.001]
[1744603318068,0.33641399,84589.0,84588.0,0.001]
[1744603318517,0.84475553,84589.0,84588.0,0.001]
[1744603319046,0.84475553,84589.0,84557.0,0.189221]
[1744603319047,0.011825,84564.0,84561.0,0.00738719]
[1744603319270,0.011825,84566.0,84562.0,0.01068692]
[1744603319515,0.011825,84565.0,84563.0,0.00738719]
[1744603319863,0.011824,84567.0,84564.0,0.01068916]
[1744603320547,0.011824,84567.0,84563.0,0.00738719]
[1744603320703,0.011824,84567.0,84564.0,0.01069364]
[1744603320898,0.011824,84567.0,84564.0,0.01808083]
[1744603321445,0.002,84566.0,84565.0,0.19659019]
[1744603321666,0.200995,84579.0,84571.0,0.011824]
[1744603321667,0.04776,84574.0,84571.0,0.011824]
[1744603321857,0.04776,84574.0,84572.0,0.189187]
[1744603322060,0.04776,84574.0,84572.0,0.19989631]
[1744603322291,0.429165,84590.0,84579.0,0.011823]
[1744603322405,0.346738,84587.0,84580.0,0.189169]
[1744603322608,0.011822,84585.0,84581.0,0.011822]
[1744603322812,0.000844,84590.0,84586.0,0.011822]
[1744603323026,0.000844,84590.0,84587.0,0.189153]
[1744603323267,0.000844,84590.0,84588.0,0.12084154]
[1744603323469,0.000844,84590.0,84588.0,0.13394281]
[1744603323756,0.000844,84590.0,84588.0,0.01073726]
[1744603324026,0.000844,84590.0,84586.0,0.200977]
[1744603324230,0.000844,84590.0,84588.0,0.01076652]
[1744603324432,0.000844,84590.0,84588.0,0.189152]
[1744603324648,0.000844,84590.0,84588.0,0.19990509]
[1744603324966,0.000844,84590.0,84588.0,0.32311085]
[1744603325153,0.000844,84590.0,84588.0,0.32813382]
[1744603325298,0.000844,84590.0,84588.0,0.37783382]
[1744603326343,0.000844,84590.0,84588.0,0.39237467]
[1744603327575,0.000844,84590.0,84588.0,0.37983382]
[1744603328942,0.000844,84590.0,84588.0,0.33013382]
[1744603332052,0.000844,84590.0,84588.0,0.33382652]
[1744603334339,0.000844,84590.0,84588.0,0.75252652]
[1744603337943,0.000844,84590.0,84588.0,0.76706737]
[1744603338130,0.000844,84590.0,84588.0,0.81486737]
[1744603338329,0.000844,84590.0,84588.0,0.86456737]
[1744603339677,0.000844,84590.0,84588.0,0.86170898]
[1744603340931,0.000844,84590.0,84588.0,1.00730898]
[1744603341236,0.000844,84590.0,84588.0,1.34730898]
[1744603341983,0.000844,84590.0,84588.0,0.79736813]
[1744603342408,0.000844,84590.0,84588.0,0.80036813]
[1744603342581,0.000844,84590.0,84588.0,0.80293116]
[1744603343434,0.000844,84590.0,84588.0,0.80493116]
[1744603348665,0.000844,84590.0,84588.0,0.75523116]
[1744603352226,0.000844,84590.0,84588.0,0.75153846]
[1744603356192,0.000844,84590.0,84588.0,0.76607931]
[1744603356394,0.000844,84590.0,84588.0,0.81267931]
[1744603357959,0.000844,84590.0,84588.0,0.79813846]
[1744603359252,0.000844,84590.0,84588.0,0.81267931]
[1744603359462,0.000844,84590.0,84588.0,1.23487876]
[1744603360695,0.000844,84590.0,84588.0,1.20167931]
[1744603361252,0.000844,84590.0,84588.0,1.23487808]
[1744603362256,0.000844,84590.0,84588.0,1.20167931]
[1744603362839,0.000844,84590.0,84588.0,1.14053846]
[1744603364012,0.011818,84611.0,84606.0,0.18911]
[1744603364013,0.01001481,84611.0,84606.0,0.18911]
[1744603364239,0.011819,84604.0,84594.0,0.011821]
[1744603364448,0.00013909,84604.0,84601.0,0.189122]
[1744603364652,0.00013909,84604.0,84602.0,0.0212762]
[1744603364802,0.00013909,84604.0,84603.0,0.00738719]
[1744603365405,0.19989109,84606.0,84603.0,0.00738719]
[1744603365837,0.19989009,84606.0,84604.0,0.00738719]
[1744603366054,0.01077809,84606.0,84605.0,0.00738719]
[1744603366252,0.01077809,84606.0,84605.0,0.02470164]
[1744603367419,0.01077809,84606.0,84605.0,0.02470005]
[1744603368504,0.19988909,84606.0,84605.0,0.02470005]
[1744603368904,0.01077809,84606.0,84605.0,0.02470005]
[1744603369114,0.19988909,84606.0,84605.0,0.02470005]
[1744603370496,0.19988909,84606.0,84605.0,0.0073856]
[1744603371422,0.19988909,84606.0,84605.0,0.01786619]
[1744603372285,0.19988909,84606.0,84605.0,0.0073856]
[1744603375362,0.09988909,84606.0,84605.0,0.01786619]
[1744603375772,0.11170809,84606.0,84605.0,0.01786619]
[1744603376209,0.11170809,84606.0,84605.0,0.03856531]
[1744603376409,0.11170809,84606.0,84605.0,0.0073856]
[1744603376802,0.11170809,84606.0,84605.0,0.01786619]
[1744603379168,0.011819,84606.0,84605.0,0.01786619]
[1744603379617,0.20093,84606.0,84605.0,0.01786619]
[1744603379964,0.20093,84606.0,84605.0,0.0073856]
[1744603381040,0.20093,84606.0,84605.0,0.03991527]
[1744603381185,0.20093,84606.0,84605.0,0.0073856]
[1744603381392,0.20093,84606.0,84605.0,0.01790021]
[1744603382771,0.011819,84609.0,84605.0,0.0073856]
[1744603382998,0.34,84612.0,84610.0,0.189101]
[1744603383411,0.157417,84617.0,84613.0,0.189095]
[1744603383611,0.011818,84616.0,84611.0,0.21148121]
[1744603383809,0.157417,84617.0,84614.0,0.01057439]
[1744603384053,0.1456,84617.0,84614.0,0.011818]
[1744603384260,0.002,84619.0,84616.0,0.200907]
[1744603384454,0.002,84619.0,84618.0,0.189085]
[1744603384857,0.002,84619.0,84618.0,0.20701369]
[1744603385372,0.002,84619.0,84618.0,0.21070616]
[1744603388152,0.00190092,84619.0,84618.0,0.21070616]
[1744603389290,0.00190092,84619.0,84618.0,0.3793477]
[1744603389494,0.00190092,84619.0,84618.0,0.42169348]
[1744603389674,0.00190092,84619.0,84618.0,0.42419631]
[1744603390225,0.00190092,84619.0,84618.0,0.30335477]
[1744603390428,0.00190092,84619.0,84618.0,0.02146977]
[1744603390682,0.19098292,84619.0,84618.0,0.01107807]
[1744603391403,0.19098292,84619.0,84618.0,0.0073856]
[1744603392756,0.53098292,84619.0,84618.0,0.0073856]
[1744603392958,0.189096,84613.0,84612.0,0.00369251]
[1744603393367,0.011818,84610.0,84607.0,0.189109]
[1744603393533,0.011818,84612.0,84608.0,0.00738515]
[1744603393734,0.011818,84615.0,84611.0,0.200918]
[1744603393958,0.011818,84614.0,84612.0,0.00738515]
[1744603394355,0.189096,84613.0,84612.0,0.00738515]
[1744603394562,0.011818,84614.0,84613.0,0.00738515]
[1744603398577,0.011818,84610.0,84606.0,0.20093]
[1744603398782,0.011819,84608.0,84604.0,0.189115]
[1744603399083,0.011819,84608.0,84604.0,0.200934]
[1744603399307,0.011819,84608.0,84605.0,0.00738511]
[1744603399522,0.011819,84609.0,84605.0,0.01920411]
[1744603399718,0.011819,84609.0,84606.0,0.001]
[1744603400064,0.011819,84609.0,84607.0,0.00738511]
[1744603400747,0.200924,84609.0,84607.0,0.00738511]
[1744603400910,0.200924,84609.0,84608.0,0.00738511]
[1744603401716,0.01182,84601.0,84597.0,0.00738511]
[1744603401917,0.189129,84598.0,84597.0,0.00738511]
[1744603402125,0.200945,84600.0,84597.0,0.00738511]
[1744603402288,0.200945,84600.0,84598.0,0.00738511]
[1744603402689,0.200945,84600.0,84599.0,0.00738511]
[1744603402884,0.01182,84600.0,84599.0,0.00738511]
[1744603403087,0.34,84608.0,84605.0,0.011819]
[1744603403489,0.011817,84617.0,84613.0,0.011818]
[1744603403733,0.011818,84615.0,84610.0,0.011818]
[1744603403945,0.011818,84614.0,84611.0,0.00738511]
[1744603404113,0.01163921,84614.0,84612.0,0.02201241]
[1744603404316,0.011818,84615.0,84612.0,0.011818]
[1744603404521,0.011818,84616.0,84613.0,0.00738511]
[1744603405121,0.011818,84616.0,84614.0,0.00738511]
[1744603405505,0.011818,84616.0,84615.0,0.00738511]
[1744603405712,0.200907,84616.0,84615.0,0.00738511]
[1744603405914,0.011818,84616.0,84615.0,0.03057922]
[1744603406114,0.011818,84616.0,84615.0,0.04110488]
[1744603406553,0.012818,84616.0,84615.0,0.04110488]
[1744603407135,0.002,84616.0,84615.0,0.04110488]
[1744603409794,0.002,84616.0,84615.0,0.01791077]
[1744603414915,0.002,84616.0,84615.0,0.0216032]
[1744603416266,0.191089,84616.0,84615.0,0.0216032]
[1744603417453,0.191089,84616.0,84615.0,0.01107754]
[1744603418073,0.191089,84616.0,84615.0,0.00738511]
[1744603419573,0.191089,84616.0,84615.0,0.01787278]
[1744603420161,0.002,84616.0,84615.0,0.01787278]
[1744603420321,0.002,84616.0,84615.0,0.04344446]
[1744603422795,0.002,84616.0,84615.0,0.02156518]
[1744603424497,0.002,84616.0,84615.0,0.01107751]
[1744603427418,0.002,84616.0,84615.0,0.21065618]
[1744603427614,0.002,84616.0,84615.0,0.2080242]
[1744603428295,0.002,84616.0,84615.0,0.42486574]
[1744603428915,0.00190092,84619.0,84618.0,0.189085]
[1744603429120,0.00190092,84619.0,84618.0,0.35792654]
[1744603429421,0.00190092,84619.0,84618.0,0.36575221]
[1744603429749,0.00190092,84619.0,84618.0,0.37313732]
[1744603429954,0.00190092,84619.0,84618.0,0.37682972]
[1744603430425,0.00290092,84619.0,84618.0,0.37682972]
[1744603430586,0.00290092,84619.0,84618.0,0.01890318]
[1744603432048,0.00290092,84619.0,84618.0,0.01521078]
[1744603433354,0.00290092,84619.0,84618.0,0.20429578]
[1744603433745,0.00290092,84619.0,84618.0,0.20798786]
[1744603438716,0.00290092,84619.0,84618.0,0.01890286]
[1744603439031,0.00290092,84619.0,84618.0,0.01521078]
[1744603439313,0.00290092,84619.0,84618.0,0.00738511]
[1744603440598,0.34290092,84619.0,84618.0,0.00738511]
[1744603441116,0.46374246,84619.0,84618.0,0.00738511]
[1744603441640,0.01182,84599.0,84596.0,0.00738511]
[1744603441815,0.01182,84599.0,84597.0,0.01043205]
[1744603442003,0.01182,84597.0,84594.0,0.00013909]
[1744603442200,0.01182,84597.0,84595.0,0.01042758]
[1744603442552,0.01182,84597.0,84596.0,0.00738602]
[1744603442737,0.189129,84598.0,84596.0,0.00738602]
[1744603442942,0.189129,84598.0,84596.0,0.01781696]
[1744603443257,0.01182,84599.0,84596.0,0.01781696]
[1744603443418,0.200948,84599.0,84597.0,0.00738602]
[1744603443619,0.200948,84599.0,84598.0,0.01043317]
[1744603444361,0.200948,84599.0,84596.0,0.00738602]
[1744603444564,0.200948,84599.0,84598.0,0.01043541]
[1744603444865,0.01182,84599.0,84598.0,0.01043541]
[1744603445088,0.002,84598.0,84595.0,0.011821]
[1744603445971,0.01182,84598.0,84595.0,0.011821]
[1744603446228,0.01382,84598.0,84595.0,0.011821]
[1744603447761,0.01382,84598.0,84594.0,0.20109709]
[1744603447762,0.01182,84597.0,84594.0,0.18927709]
[1744603447965,0.01382,84598.0,84594.0,0.20109809]
[1744603448527,0.01382,84598.0,84595.0,0.011821]
[1744603449061,0.01182,84597.0,84594.0,0.00013909]
[1744603449362,0.200952,84597.0,84594.0,0.00013909]
[1744603449567,0.189136,84596.0,84594.0,0.00013909]
[1744603449785,0.200952,84597.0,84595.0,0.01048963]
[1744603452246,0.202952,84597.0,84595.0,0.01048963]
[1744603452865,0.200952,84597.0,84595.0,0.01048963]
[1744603453094,0.202952,84597.0,84595.0,0.01048963]
[1744603455324,0.002,84597.0,84596.0,0.189134]
[1744603455534,0.002,84597.0,84596.0,0.40447554]
[1744603455728,0.002,84597.0,84596.0,0.41237808]
[1744603456054,0.002,84597.0,84596.0,0.22324408]
[1744603456201,0.191132,84597.0,84596.0,0.10503787]
[1744603456409,0.189132,84597.0,84596.0,0.01792372]
[1744603456608,0.189132,84597.0,84596.0,0.00738585]
[1744603456808,0.201952,84597.0,84594.0,0.00013909]
[1744603457231,0.189136,84595.0,84594.0,0.00013909]
[1744603457405,0.201952,84597.0,84594.0,0.00013909]
[1744603457406,0.001,84597.0,84594.0,0.20109809]
[1744603457606,0.001,84597.0,84596.0,0.190134]
[1744603457807,0.001,84597.0,84596.0,0.35897554]
[1744603458061,0.001,84597.0,84596.0,0.42341838]
[1744603458198,0.001,84597.0,84596.0,0.42241838]
[1744603458625,0.011819,84604.0,84601.0,0.01182]
[1744603458843,0.011819,84606.0,84602.0,0.20094]
[1744603459021,0.011819,84606.0,84602.0,0.02239041]
[1744603459377,0.011819,84605.0,84602.0,0.01057041]
[1744603459837,0.200935,84605.0,84602.0,0.01057041]
[1744603460674,0.203935,84605.0,84602.0,0.01057041]
[1744603460823,0.189118,84603.0,84602.0,0.01057041]
[1744603461031,0.189126,84600.0,84598.0,0.00738585]
[1744603461443,0.200946,84600.0,84597.0,0.00738585]
[1744603461648,0.189129,84598.0,84597.0,0.00738585]
[1744603461884,0.189134,84596.0,84595.0,0.00738585]
[1744603462242,0.189134,84596.0,84594.0,0.00013909]
[1744603462446,0.18882242,84596.0,84594.0,0.00013909]
[1744603463908,0.18982242,84596.0,84594.0,0.00013909]
[1744603464602,0.18982242,84596.0,84595.0,0.01051943]
[1744603465015,0.18982242,84596.0,84594.0,0.00013909]
[1744603465224,0.18982242,84596.0,84595.0,0.01052166]
[1744603465437,0.18982242,84596.0,84594.0,0.00013909]
[1744603465652,0.18982242,84596.0,84595.0,0.01790751]
[1744603465865,0.18882242,84596.0,84595.0,0.01790751]
[1744603466115,0.19082242,84596.0,84595.0,0.01790751]
[1744603466318,0.18882242,84596.0,84595.0,0.01790751]
[1744603466596,0.14532,84601.0,84597.0,0.01182]
[1744603467058,0.14532,84601.0,84598.0,0.00738585]
[1744603467292,0.14532,84601.0,84598.0,0.05178887]
[1744603467517,0.14532,84601.0,84599.0,0.19651285]
[1744603467961,0.14532,84601.0,84600.0,0.00738585]
[1744603468181,0.14532,84601.0,84600.0,0.01793888]
[1744603468654,0.14732,84601.0,84600.0,0.01793888]
[1744603469111,0.14732,84601.0,84600.0,0.06633888]
[1744603469351,0.15032,84601.0,84600.0,0.23658042]
[1744603469580,0.005,84601.0,84600.0,0.23658042]
[1744603471195,0.005,84601.0,84600.0,0.11573888]
[1744603471400,0.011819,84608.0,84600.0,0.06733888]
[1744603471401,0.200938,84603.0,84600.0,0.06733888]
[1744603471531,0.002,84601.0,84600.0,0.01793888]
[1744603471869,0.002,84601.0,84600.0,0.01055303]
[1744603472035,0.002,84601.0,84600.0,0.00738586]
[1744603472365,0.002,84601.0,84600.0,0.01788811]
[1744603472366,0.191123,84601.0,84600.0,0.01788811]
[1744603472569,0.002,84601.0,84600.0,0.00738586]
[1744603473183,0.002,84601.0,84600.0,0.01788811]
[1744603473482,0.002,84601.0,84600.0,0.20701311]
[1744603473693,0.002,84601.0,84600.0,0.01788811]
[1744603474726,0.002,84601.0,84600.0,0.20701311]
[1744603476920,0.002,84601.0,84600.0,0.37525408]
[1744603477225,0.002,84601.0,84600.0,0.41876499]
[1744603477558,0.002,84601.0,84600.0,0.43330584]
[1744603477932,0.0004224,84623.0,84618.0,0.236485]
[1744603478099,0.0004224,84623.0,84618.0,0.35732654]
[1744603478299,0.0004224,84623.0,84618.0,0.36515289]
[1744603478903,0.0004224,84623.0,84618.0,0.37253818]
[1744603480241,0.0122394,84623.0,84618.0,0.06261164]
[1744603480420,0.0122394,84623.0,84618.0,0.25169664]
[1744603480421,0.0004224,84623.0,84618.0,0.25169664]
[1744603480958,0.0004224,84623.0,84618.0,0.20529664]
[1744603481160,0.00390092,84619.0,84618.0,0.01621164]
[1744603489646,0.00390092,84619.0,84618.0,0.00882635]
[1744603490130,0.00390092,84619.0,84618.0,0.01621164]
[1744603492262,0.00390092,84619.0,84618.0,0.06551164]
[1744603493926,0.00390092,84619.0,84618.0,0.18635318]
[1744603494334,0.00390092,84619.0,84618.0,0.19829241]
[1744603494737,0.00390092,84619.0,84618.0,0.24509241]
[1744603494942,0.00390092,84619.0,84618.0,0.25963326]
[1744603495900,8e-07,84623.0,84622.0,0.63971685]
[1744603496019,8e-07,84623.0,84622.0,0.90575839]
[1744603496224,8e-07,84623.0,84622.0,0.92077978]
[1744603496662,8e-07,84623.0,84622.0,0.92949961]
[1744603497427,0.00012679,84623.0,84622.0,0.92949961]
[1744603498027,0.0008444,84629.0,84628.0,0.189062]
[1744603498209,0.0008444,84629.0,84628.0,0.4229071]
[1744603498374,0.0008444,84629.0,84628.0,0.435538]
[1744603499660,0.0008444,84629.0,84628.0,0.42099715]
[1744603499784,0.0008444,84629.0,84628.0,0.56619715]
[1744603499987,0.0008444,84629.0,84628.0,0.56819715]
[1744603500316,0.0008444,84629.0,84628.0,0.57019715]
[1744603500520,0.0008444,84629.0,84628.0,0.42299715]
[1744603500716,0.0008444,84629.0,84628.0,0.32689715]
[1744603500932,0.0008444,84629.0,84628.0,0.33089715]
[1744603501535,0.0008444,84629.0,84628.0,0.21305561]
[1744603501997,0.0008444,84629.0,84628.0,0.02399361]
[1744603502377,0.0008444,84629.0,84628.0,0.21305561]
[1744603502772,0.0008444,84629.0,84628.0,0.21005561]
[1744603502984,0.0008444,84629.0,84628.0,0.20605561]
[1744603503422,0.0008444,84629.0,84628.0,0.01799361]
[1744603504070,0.0008444,84629.0,84628.0,0.01599361]
[1744603504281,0.0008444,84629.0,84628.0,0.01699361]
[1744603504805,0.0008444,84629.0,84628.0,0.01599361]
[1744603505587,0.0018444,84629.0,84628.0,0.00860832]
[1744603505760,0.0018444,84629.0,84628.0,0.00760832]
[1744603506155,0.0018444,84629.0,84627.0,0.189064]
[1744603506359,0.0018444,84629.0,84628.0,0.01505461]
[1744603506936,0.011816,84625.0,84620.0,0.01920229]
[1744603507099,0.011816,84627.0,84622.0,0.189076]
[1744603507276,0.011816,84627.0,84623.0,0.011817]
[1744603507480,0.011816,84628.0,84624.0,0.19645629]
[1744603507739,0.20088,84627.0,84624.0,0.00738529]
[1744603507979,0.200906,84617.0,84605.0,0.049]
[1744603508106,0.200906,84617.0,84601.0,0.0451]
[1744603508107,0.200919,84611.0,84606.0,0.00941]
[1744603508292,0.0499,84624.0,84606.0,0.00941]
[1744603508293,0.011818,84616.0,84610.0,0.20092]
[1744603508498,0.189091,84615.0,84611.0,0.00738479]
[1744603508698,0.011818,84615.0,84611.0,0.01920279]
[1744603508910,0.20091,84615.0,84612.0,0.00738479]
[1744603509324,0.189096,84614.0,84612.0,0.00738479]
[1744603509524,0.189096,84614.0,84613.0,0.00738479]
[1744603509733,0.189096,84614.0,84613.0,0.01510213]
[1744603510100,0.189096,84614.0,84613.0,0.01510381]
[1744603510658,0.20091,84615.0,84613.0,0.01510381]
[1744603510838,0.20091,84615.0,84613.0,0.01610381]
[1744603511038,0.20091,84615.0,84613.0,0.00871902]
[1744603512192,0.20091,84615.0,84613.0,0.001]
[1744603512557,0.189098,84612.0,84611.0,0.00738479]
[1744603512756,0.011819,84606.0,84602.0,0.200939]
[1744603512910,0.011819,84606.0,84603.0,0.12084154]
[1744603513077,0.189114,84605.0,84603.0,0.12862543]
[1744603513273,0.189114,84605.0,84603.0,0.00778389]
[1744603513713,0.01182,84602.0,84599.0,0.01182]
[1744603514087,0.189123,84601.0,84600.0,0.00777886]
[1744603514637,0.01182,84600.0,84596.0,0.01182]
[1744603514819,0.01182,84600.0,84597.0,0.12861704]
[1744603515023,0.01182,84600.0,84599.0,0.004]
[1744603515231,0.01182,84600.0,84599.0,0.01177718]
[1744603515422,0.0118663,84600.0,84599.0,0.01177718]
[1744603515637,0.0118663,84600.0,84599.0,0.0191629]
[1744603516595,0.0118663,84600.0,84599.0,0.01441766]
[1744603516801,0.011821,84592.0,84587.0,0.011822]
[1744603517091,0.200966,84592.0,84588.0,0.01040199]
[1744603518405,0.011821,84592.0,84589.0,0.011821]
[1744603518748,0.011821,84592.0,84590.0,0.01051794]
[1744603519814,0.011821,84592.0,84588.0,0.012822]
[1744603520012,0.011821,84592.0,84591.0,0.01052465]
[1744603520248,0.011821,84592.0,84590.0,0.001]
[1744603520435,0.011821,84592.0,84591.0,0.01052913]
[1744603521068,0.011821,84591.0,84588.0,0.001]
[1744603521272,0.200966,84591.0,84588.0,0.001]
[1744603521467,0.200966,84591.0,84589.0,0.01052689]
[1744603522516,0.011821,84589.0,84586.0,0.011822]
[1744603523125,0.011821,84589.0,84588.0,0.001]
[1744603524037,0.189152,84588.0,84586.0,0.004]
[1744603524444,0.189152,84588.0,84586.0,0.002]
[1744603524661,0.34,84587.0,84586.0,0.002]
[1744603525228,0.189167,84581.0,84580.0,0.0008448]
[1744603525979,0.529167,84581.0,84580.0,0.0008448]
[1744603526202,0.575367,84581.0,84580.0,0.0008448]
[1744603527411,0.625867,84581.0,84580.0,0.0008448]
[1744603528403,0.74670854,84581.0,84580.0,0.0008448]
[1744603528827,0.8793255,84581.0,84580.0,0.0008448]
[1744603529043,1.2958255,84581.0,84580.0,0.0008448]
[1744603529645,1.17209702,84581.0,84580.0,0.0008448]
[1744603529847,1.17609702,84581.0,84580.0,0.0008448]
[1744603530289,1.19063787,84581.0,84580.0,0.0008448]
[1744603530494,1.19663787,84581.0,84580.0,0.0008448]
[1744603530671,1.19263787,84581.0,84580.0,0.0008448]
[1744603531102,1.19963787,84581.0,84580.0,0.0018448]
[1744603531310,1.19963787,84581.0,84578.0,0.0008448]
[1744603531311,0.64371285,84579.0,84578.0,4e-07]
[1744603531528,0.81205439,84579.0,84578.0,4e-07]
[1744603531744,0.69751354,84579.0,84578.0,4e-07]
[1744603532137,0.84271354,84579.0,84578.0,4e-07]
[1744603532289,0.96344202,84579.0,84578.0,4e-07]
[1744603532691,0.84671354,84579.0,84578.0,4e-07]
[1744603532888,0.85371354,84579.0,84578.0,4e-07]
[1744603533793,1.12501354,84579.0,84578.0,4e-07]
[1744603534101,1.27025354,84579.0,84578.0,4e-07]
[1744603534929,0.664172,84579.0,84578.0,4e-07]
[1744603535136,0.15624,84579.0,84578.0,4e-07]
[1744603535487,0.15624,84579.0,84578.0,0.01837585]
[1744603535838,0.011,84579.0,84578.0,0.01837585]
[1744603536039,0.007,84579.0,84578.0,0.01837585]
[1744603536246,0.14524,84580.0,84578.0,0.01837585]
[1744603536247,0.14524,84580.0,84579.0,0.189172]
[1744603536486,0.14524,84583.0,84578.0,0.01837585]
[1744603536695,0.200987,84582.0,84579.0,0.01825693]
[1744603536805,0.14524,84583.0,84579.0,0.20742593]
[1744603537013,0.14524,84583.0,84580.0,0.18917]
[1744603537274,0.14524,84583.0,84581.0,0.01825495]
[1744603537634,0.14524,84582.0,84578.0,0.1891734]
[1744603538217,0.14524,84582.0,84578.0,0.1901734]
[1744603538418,0.14524,84582.0,84579.0,0.189172]
[1744603539203,0.011822,84581.0,84578.0,0.0010004]
[1744603539544,0.157062,84582.0,84578.0,4e-07]
[1744603539748,0.157062,84582.0,84578.0,0.1891744]
[1744603539947,0.157062,84582.0,84579.0,0.01826431]
[1744603540756,0.14524,84582.0,84579.0,0.01826431]
[1744603541111,0.189167,84581.0,84579.0,0.01826431]
[1744603541286,0.157062,84582.0,84579.0,0.01826431]
[1744603542965,0.346227,84582.0,84579.0,0.01826431]
[1744603543925,0.18917,84580.0,84579.0,0.01826431]
[1744603547029,0.34,84579.0,84578.0,4e-07]
[1744603547715,0.46084154,84579.0,84578.0,4e-07]
[1744603548113,0.46975674,84579.0,84578.0,4e-07]
[1744603548456,0.61935674,84579.0,84578.0,4e-07]
[1744603548656,0.74008522,84579.0,84578.0,4e-07]
[1744603549059,0.74208522,84579.0,84578.0,4e-07]
[1744603549638,0.74008522,84579.0,84578.0,4e-07]
[1744603549960,0.62335674,84579.0,84578.0,4e-07]
[1744603550174,0.62135674,84579.0,84578.0,4e-07]
[1744603550466,0.62935674,84579.0,84578.0,4e-07]
[1744603552259,1.84651674,84579.0,84578.0,4e-07]
[1744603554130,1.86105759,84579.0,84578.0,4e-07]
[1744603554452,0.629185,84573.0,84572.0,8e-07]
[1744603554641,0.75002654,84573.0,84572.0,8e-07]
[1744603554851,0.75002654,84573.0,84571.0,0.0008444]
[1744603554852,0.45454085,84572.0,84571.0,2e-07]
[1744603555057,0.57538239,84572.0,84571.0,2e-07]
[1744603555254,0.69611087,84572.0,84571.0,2e-07]
[1744603555787,0.69611087,84572.0,84571.0,0.00012619]
[1744603556223,0.74571087,84572.0,84571.0,1.9e-07]
[1744603557018,0.75271087,84572.0,84571.0,0.00100019]
[1744603557506,0.63198239,84572.0,84571.0,0.00100019]
[1744603558122,0.63598239,84572.0,84571.0,0.00100019]
[1744603558299,0.52921,84562.0,84561.0,0.00135199]
[1744603558500,0.79897154,84562.0,84561.0,8e-08]
[1744603558741,0.45454085,84561.0,84560.0,8.8e-07]
[1744603558988,0.56084154,84561.0,84560.0,0.00013999]
[1744603559123,0.46084154,84561.0,84560.0,0.00013999]
[1744603559331,0.011829,84534.0,84531.0,0.04005492]
[1744603559569,0.14892,84533.0,84531.0,0.04051813]
[1744603559779,0.338195,84533.0,84531.0,0.04051813]
[1744603560160,0.338195,84533.0,84531.0,0.00046321]
[1744603561140,0.14892,84533.0,84531.0,0.00046321]
[1744603561258,0.338195,84533.0,84532.0,0.02134112]
[1744603561458,0.14892,84533.0,84531.0,0.00046321]